bitfinex-derivatives/quotes_ETHF0:USTF0_20250326
["timestamp","ask_amount","ask_price","bid_price","bid_amount"]
[1743015332026,1.3279,2003.6,2003.5,2.34733]
[1743015332328,2.32598,2003.6,2003.5,2.34733]
[1743015332530,2.32598,2003.6,2003.5,1.3492]
[1743015333327,2.32598,2003.6,2003.5,2.34733]
[1743015337022,2.32598,2003.6,2003.5,1.3492]
[1743015338727,2.32598,2003.6,2003.5,2.34733]
[1743015338932,2.32598,2003.6,2003.5,1.3492]
[1743015340725,0.99818,2003.4,2003.3,1.69378]
[1743015340928,0.99818,2003.4,2003.3,3.09858]
[1743015343034,4.20598,2003.4,2003.3,2.1004]
[1743015343336,0.99841,2003.0,2002.9,3.272]
[1743015343633,0.99841,2003.0,2002.9,4.6619]
[1743015344029,2.39681,2003.0,2002.9,5.66033]
[1743015345033,2.39681,2003.0,2002.9,4.6619]
[1743015345430,2.39681,2003.0,2002.9,5.66033]
[1743015345936,2.39681,2003.0,2002.9,4.6619]
[1743015346132,4.20616,2003.1,2003.0,0.99838]
[1743015346332,0.99832,2003.2,2003.1,0.99829]
[1743015346535,0.99833,2003.1,2003.0,2.30264]
[1743015346931,0.99832,2003.2,2003.1,0.9983]
[1743015347133,0.99832,2003.2,2003.1,2.3026]
[1743015347637,0.99832,2003.2,2003.1,1.3043]
[1743015347826,2.42072,2003.2,2003.1,2.30263]
[1743015348335,0.99828,2003.3,2003.2,0.99825]
[1743015348640,0.99828,2003.3,2003.2,1.3558]
[1743015348641,2.39378,2003.3,2003.2,1.3558]
[1743015348841,8.88683,2003.3,2002.5,40.8]
[1743015349136,8.88683,2003.3,2002.2,3.273]
[1743015349137,3.2078,2002.6,2002.2,3.273]
[1743015349329,3.2078,2002.6,2002.3,0.99869]
[1743015349330,1.66087,2002.5,2002.3,0.99869]
[1743015349533,1.66087,2002.5,2002.4,0.99868]
[1743015349727,0.99868,2002.4,2002.3,0.99869]
[1743015349933,0.99868,2002.4,2002.3,5.62753]
[1743015350237,4.9967,2002.4,2001.8,0.37523592]
[1743015350444,5.70478,2002.2,2001.8,0.99895]
[1743015350644,3.2078,2002.2,2001.9,40.8]
[1743015350937,3.2078,2002.2,2002.1,0.99883]
[1743015350938,5.6021,2002.2,2002.1,0.99883]
[1743015351140,0.99886,2002.1,2002.0,0.99886]
[1743015351334,0.99888,2002.0,2001.9,41.79891]
[1743015351533,0.99888,2002.0,2001.9,45.13791]
[1743015352037,0.99897,2001.9,2001.8,0.99895]
[1743015352341,1.3911,2002.1,2001.6,14.23045285]
[1743015352530,1.3911,2002.1,2001.7,41.79903]
[1743015352730,1.3911,2002.1,2001.9,0.99889]
[1743015352938,3.88819,2002.1,2001.7,41.79899]
[1743015353133,0.99898,2001.8,2001.7,40.8]
[1743015353733,2.39008,2001.8,2001.7,40.8]
[1743015354237,0.99905,2001.7,2001.5,0.99908]
[1743015354447,11.4006,2001.6,2000.2,3.2078]
[1743015354636,2.49945,2000.2,1999.6,8.47212571]
[1743015354829,1.00028,1999.2,1999.1,31.93555322]
[1743015355030,1.00053,1998.7,1998.6,41.65438026]
[1743015355228,1.00053,1998.7,1998.6,50.69218026]
[1743015355433,3.658,1999.9,1998.7,2.50128]
[1743015355633,3.2078,2000.0,1999.5,3.2078]
[1743015355841,3.2078,2000.6,1999.5,3.2078]
[1743015356139,2.49982,1999.9,1999.3,1.77913]
[1743015356442,2.50057,1999.3,1998.7,66.97620398]
[1743015356635,3.2078,2000.4,1999.5,1.9992]
[1743015356830,3.2078,2000.4,1999.9,3.2078]
[1743015357044,3.2078,2000.8,2000.7,0.99953]
[1743015357242,3.2078,2000.8,2000.5,4.49816]
[1743015357243,4.257,2000.9,2000.5,3.2078]
[1743015357445,1.54335044,2000.8,2000.5,3.2078]
[1743015357643,0.76061084,2001.2,2000.7,29.9906]
[1743015357835,0.76061084,2001.2,2001.1,0.99933]
[1743015358041,0.00750038,2001.2,2000.9,4.2072]
[1743015358238,2.50574038,2001.2,2000.8,3.2078]
[1743015358444,0.99935,2001.1,2000.9,0.99939]
[1743015358744,0.99939,2001.0,2000.9,3.2078]
[1743015359043,0.99939,2001.0,2000.7,34.99390436]
[1743015359044,0.99948,2000.8,2000.7,0.00750038]
[1743015359452,13.49501086,2000.1,2000.0,0.99987]
[1743015359944,14.49483086,2000.1,2000.0,0.99987]
[1743015360150,13.49501086,2000.1,1999.7,0.6905]
[1743015360449,13.49501086,2000.1,2000.0,32.98967]
[1743015360643,15.42286956,2000.4,2000.3,0.99973]
[1743015360945,15.42286956,2000.4,2000.2,3.2078]
[1743015361137,0.99996,1999.9,1999.8,0.99996]
[1743015361337,4.361,2000.1,1999.9,0.99991]
[1743015361537,15.42286956,2000.4,2000.2,0.99976]
[1743015361742,0.99977,2000.3,2000.2,0.99976]
[1743015361952,0.99977,2000.3,2000.2,1.93976]
[1743015362154,0.99977,2000.3,1999.8,3.2078]
[1743015362155,2.49932,2000.3,1999.8,3.2078]
[1743015362449,15.42286956,2000.4,2000.3,0.99973]
[1743015362646,0.99973,2000.3,2000.2,1.9992]
[1743015362850,2.49945,2000.2,1999.9,1.66381]
[1743015363053,0.99987,2000.0,1999.9,0.92]
[1743015363254,0.99987,2000.1,2000.0,1.9992]
[1743015363439,0.99981,2000.2,2000.1,0.99978]
[1743015363638,0.99981,2000.2,2000.1,4.20758]
[1743015363951,9.59761168,2000.3,2000.2,0.99978]
[1743015364152,9.59761168,2000.3,2000.2,36.70623505]
[1743015364848,10.59734168,2000.3,2000.2,66.69683505]
[1743015365449,9.59761168,2000.3,2000.2,66.69683505]
[1743015365757,9.59761168,2000.3,2000.2,31.71043107]
[1743015366052,0.99971,2000.4,2000.3,0.99973]
[1743015366254,0.99971,2000.4,2000.3,54.19130151]
[1743015366455,0.99971,2000.4,2000.3,35.98613398]
[1743015366651,0.99966,2000.5,2000.4,0.99963]
[1743015366953,0.99966,2000.5,2000.4,39.19383398]
[1743015367158,0.99966,2000.5,2000.4,38.19420398]
[1743015367455,0.99966,2000.5,2000.4,39.19388398]
[1743015367855,2.03776349,2000.5,2000.4,39.19388398]
[1743015369054,1.03810349,2000.5,2000.4,39.19388398]
[1743015369352,2.03773349,2000.5,2000.4,39.19388398]
[1743015369563,2.03773349,2000.5,2000.4,57.39905151]
[1743015370058,1.17938173,2000.5,2000.4,57.39905151]
[1743015370656,5.74455103,2000.6,2000.5,0.99963]
[1743015370854,5.74455103,2000.6,2000.5,54.19120151]
[1743015372757,4.66585103,2000.6,2000.5,54.19120151]
[1743015372961,3.58705103,2000.6,2000.5,54.19120151]
[1743015373357,7.64940087,2000.8,2000.7,0.99953]
[1743015373662,4.81776135,2000.9,2000.8,0.99948]
[1743015373964,3.81831135,2000.9,2000.8,35.98588398]
[1743015374156,3.81831135,2000.9,2000.8,54.19105151]
[1743015374657,3.81831135,2000.9,2000.8,37.18919232]
[1743015375456,3.81831135,2000.9,2000.8,36.18971232]
[1743015375658,0.99967,2000.5,2000.4,3.2078]
[1743015375857,0.99967,2000.5,2000.4,33.2078]
[1743015376057,0.99967,2000.5,2000.4,51.19234479]
[1743015376261,0.99967,2000.5,2000.4,17.98454479]
[1743015376457,0.99997,1999.8,1999.7,0.00750038]
[1743015376761,0.99997,1999.8,1999.7,48.21266791]
[1743015377069,0.99997,1999.8,1999.7,70.4050327]
[1743015377363,0.76997459,1999.9,1999.8,0.99997]
[1743015377551,0.76997459,1999.9,1999.8,36.18971232]
[1743015377552,1.76989459,1999.9,1999.8,36.18971232]
[1743015377862,1.00742038,1999.9,1999.8,67.18968232]
[1743015378067,1.00742038,1999.9,1999.8,66.18971232]
[1743015378258,1.00742038,1999.9,1999.8,67.18968232]
[1743015378560,1.00742038,1999.9,1999.8,66.18971232]
[1743015379063,1.00742038,1999.9,1999.8,37.18968232]
[1743015380863,1.66467737,1999.9,1999.8,37.18968232]
[1743015382861,1.66467737,1999.9,1999.7,4.61490038]
[1743015382862,0.99997,1999.8,1999.7,1.40710038]
[1743015383159,1.3521,1999.8,1999.2,3.2078]
[1743015383362,1.00002,1999.7,1999.6,22.41302753]
[1743015383564,1.00002,1999.7,1999.6,19.20522753]
[1743015383763,1.00002,1999.7,1999.6,40.39757232]
[1743015384165,2.06887446,1999.7,1999.6,40.39757232]
[1743015384365,1.06885446,1999.7,1999.6,37.18977232]
[1743015384575,1.06885446,1999.7,1999.6,40.39757232]
[1743015384762,2.06887446,1999.7,1999.6,40.39757232]
[1743015384963,1.06885446,1999.7,1999.6,40.39757232]
[1743015385468,0.99999,1999.8,1999.7,1.00002]
[1743015385664,1.39283604,1999.8,1999.7,37.88113232]
[1743015385862,0.39284604,1999.8,1999.7,37.88113232]
[1743015386369,0.39284604,1999.8,1999.7,39.31223232]
[1743015386562,1.39281604,1999.8,1999.7,39.31223232]
[1743015386762,0.39284604,1999.8,1999.7,39.31223232]
[1743015387065,1.39281604,1999.8,1999.7,39.31223232]
[1743015387364,1.00008,1999.6,1999.5,0.00750038]
[1743015387761,1.39292604,1999.6,1999.5,1.42040038]
[1743015388753,4.60072604,1999.6,1999.5,0.00750038]
[1743015388958,1.00028,1999.2,1999.1,1.4129]
[1743015389165,5.00126,1999.3,1998.7,3.9223]
[1743015389366,1.00043,1998.9,1998.8,37.60261232]
[1743015389563,1.00058,1998.6,1998.5,3.2078]
[1743015389765,1.00058,1998.6,1998.5,22.60524479]
[1743015389964,2.50157,1998.5,1998.0,17.98454479]
[1743015390262,3.80969,1998.5,1998.3,18.20516753]
[1743015390462,1.00078,1998.2,1998.1,1.4129]
[1743015390665,1.00076,1998.3,1998.1,19.39744479]
[1743015390866,1.0007,1998.4,1998.3,1.00073]
[1743015391063,2.31609,1998.6,1998.3,20.70688753]
[1743015391264,1.00075,1998.3,1998.2,1.00073]
[1743015391565,1.00083,1998.1,1998.0,2.37248]
[1743015391868,1.00083,1998.1,1998.0,20.35702479]
[1743015392063,9.0378,1998.6,1998.3,1.00073]
[1743015392264,1.00063,1998.5,1998.4,1.3716]
[1743015392464,1.00063,1998.5,1998.4,17.98454479]
[1743015392465,2.31613,1998.5,1998.4,17.98454479]
[1743015392965,6.31889,1998.5,1997.6,3.2078]
[1743015393159,10.3533,1998.5,1998.0,5.70994]
[1743015393355,8.14617,1998.5,1998.4,1.00068]
[1743015393559,1.00073,1998.4,1998.3,1.0007]
[1743015393758,2.36543,1998.4,1998.3,18.98524479]
[1743015394158,1.3647,1998.4,1998.3,18.98524479]
[1743015394357,1.3647,1998.4,1998.3,37.19041232]
[1743015394669,4.20838,1998.6,1998.5,1.00063]
[1743015394863,4.20838,1998.6,1998.5,18.98517479]
[1743015395063,4.20838,1998.6,1998.5,16.28137322]
[1743015395064,11.85778087,1998.6,1998.5,16.28137322]
[1743015395361,11.85778087,1998.6,1998.5,17.28200322]
[1743015395967,11.85778087,1998.6,1998.1,1.00078]
[1743015395968,1.00083,1998.2,1998.1,1.00078]
[1743015396169,1.00111,1997.6,1997.5,1.00109]
[1743015396465,1.00113,1997.5,1997.4,20.58893753]
[1743015396659,1.00113,1997.5,1997.4,2.38374]
[1743015396861,4.415,1997.5,1996.7,0.712]
[1743015397073,3.2078,1997.1,1996.9,1.3824]
[1743015397259,3.2078,1996.8,1994.9,15.41824371]
[1743015397460,3.2078,1995.0,1993.7,26.9711575]
[1743015397668,1.00283,1994.1,1994.0,23.2494]
[1743015397863,1.0028,1994.2,1994.0,23.2494]
[1743015398065,5.01178,1995.1,1994.2,22.54747]
[1743015398365,0.00752087,1994.3,1994.2,3.2978]
[1743015398667,2.50707,1994.2,1993.9,23.07949518]
[1743015398868,1.00288,1994.0,1993.9,4.75580176]
[1743015399078,3.2078,1994.8,1994.2,20.0405]
[1743015399271,3.2078,1995.1,1994.6,2.50645]
[1743015399470,3.9182,1995.9,1995.2,20.0405]
[1743015399664,3.2078,1996.4,1995.5,20.0405]
[1743015399865,3.8963,1996.5,1995.6,31.5094]
[1743015400068,1.00177,1996.3,1996.0,40.8]
[1743015400268,1.00177,1996.3,1995.9,23.2483]
[1743015400269,1.00188,1996.0,1995.9,0.00752087]
[1743015400671,1.00213,1995.5,1995.4,3.2078]
[1743015400861,3.2078,1996.1,1995.2,5.71351]
[1743015401062,2.51207087,1996.2,1995.6,3.2078]
[1743015401262,2.51200087,1996.2,1995.7,40.8]
[1743015401462,1.00183,1996.1,1995.7,50.8288]
[1743015401668,6.255,1996.0,1995.6,3.2078]
[1743015401872,6.255,1996.0,1994.2,50.474]
[1743015401873,9.59761168,1995.2,1994.9,3.2078]
[1743015402074,9.59761168,1995.2,1995.1,4.21013]
[1743015402268,5.38561169,1995.2,1995.1,65.05063]
[1743015402463,5.38561169,1995.2,1995.1,75.07943]
[1743015402872,5.71213,1996.3,1995.2,2.50571]
[1743015403069,1.00932087,1996.2,1995.8,3.2078]
[1743015403266,0.00752087,1996.2,1996.0,3.2078]
[1743015403470,0.00752087,1996.2,1996.1,1.00183]
[1743015403771,0.00752087,1996.2,1996.1,31.07113]
[1743015404077,0.00752087,1996.2,1996.1,10.0288]
[1743015404377,0.00752087,1996.2,1996.1,31.07113]
[1743015404862,0.00752087,1996.2,1996.0,53.7048]
[1743015405069,0.00752087,1996.2,1996.1,11.03063]
[1743015405264,0.00752087,1996.2,1996.1,31.07113]
[1743015406069,3.78761546,1996.9,1996.6,2.50384]
[1743015406269,3.78761546,1996.9,1996.8,4.20928]
[1743015406475,4.78904546,1996.9,1996.6,5.71164]
[1743015406675,1.00149,1996.8,1996.6,3.2078]
[1743015406876,1.00153,1996.7,1996.4,3.2078]
[1743015407071,1.00153,1996.7,1996.6,1.00158]
[1743015407277,1.00905087,1996.7,1996.4,0.00752087]
[1743015407484,1.00163,1996.5,1996.4,0.00752087]
[1743015408583,1.00163,1996.5,1996.4,1.00920087]
[1743015408776,1.00161,1996.6,1996.5,1.00158]
[1743015409174,1.00163,1996.6,1996.5,1.0016]
[1743015409481,2.44928087,1996.7,1996.6,1.00158]
[1743015409678,1.00905087,1996.7,1996.6,4.20938]
[1743015409882,0.00752087,1996.7,1996.6,4.20938]
[1743015410380,0.00752087,1996.7,1996.6,4.71684774]
[1743015410986,6.29095546,1997.1,1997.0,1.00138]
[1743015410987,4.78897546,1997.1,1997.0,1.00138]
[1743015411182,1.00138,1997.0,1996.9,4.2092]
[1743015411879,6.27207546,1997.2,1996.8,25.75193]
[1743015412082,1.00135,1997.1,1997.0,1.00133]
[1743015412279,1.00138,1997.0,1996.9,1.50888774]
[1743015412481,2.50347,1997.0,1996.7,1.0015]
[1743015412682,2.50367,1996.9,1996.5,3.2078]
[1743015412873,1.00158,1996.6,1996.5,30.53816605]
[1743015413082,5.71169,1996.7,1996.5,0.00752087]
[1743015413282,1.00158,1996.6,1996.5,0.00752087]
[1743015413578,1.00146,1996.9,1996.8,1.00143]
[1743015413984,0.00752087,1997.0,1996.5,5.71928087]
[1743015413985,1.00148,1996.8,1996.7,1.00149]
[1743015414184,1.00153,1996.7,1996.6,2.81532774]
[1743015414485,1.00146,1996.9,1996.8,1.00143]
[1743015415076,1.00153,1996.8,1996.7,1.00149]
[1743015415390,1.00151,1996.8,1996.7,21.54943774]
[1743015415575,1.00151,1996.8,1996.7,1.50893774]
[1743015415882,1.00151,1996.8,1996.7,4.71673774]
[1743015416082,1.00151,1996.8,1996.7,1.50893774]
[1743015416587,1.00158,1996.6,1996.5,0.00752087]
[1743015416981,1.00168,1996.4,1996.3,1.434]
[1743015417373,1.00168,1996.4,1996.3,2.43573]
[1743015417881,1.00168,1996.4,1996.3,22.98369774]
[1743015418379,1.00168,1996.4,1996.3,31.97230605]
[1743015418787,1.00162,1996.6,1996.5,1.00158]
[1743015418982,1.00163,1996.5,1996.4,21.54962774]
[1743015419190,4.20943,1996.5,1996.4,1.3365]
[1743015419379,1.00163,1996.5,1996.4,1.3365]
[1743015419781,4.20943,1996.5,1996.4,1.3365]
[1743015419980,4.20943,1996.5,1996.0,53.7048]
[1743015419981,1.00183,1996.1,1996.0,50.497]
[1743015420284,1.00183,1996.1,1995.5,3.4561]
[1743015420285,1.00208,1995.6,1995.5,3.4561]
[1743015420590,1.00203,1995.8,1995.7,20.0405]
[1743015420785,1.00203,1995.8,1995.7,21.04253]
[1743015420986,0.00752087,1995.9,1995.8,1.00193]
[1743015421292,0.00752087,1995.9,1995.8,5.56723]
[1743015421489,0.00752087,1995.9,1995.8,26.11519774]
[1743015421689,1.00175,1996.3,1996.2,1.00178]
[1743015421895,1.00178,1996.2,1996.1,21.398]
[1743015422111,2.50411,1996.5,1996.1,24.6058]
[1743015422309,1.00171,1996.4,1996.3,1.00166]
[1743015422503,1.00167,1996.5,1996.4,1.00163]
[1743015422704,1.00167,1996.5,1996.4,2.86659774]
[1743015422905,1.00167,1996.5,1996.4,2.86664774]
[1743015423306,1.00913087,1996.6,1996.5,1.00163]
[1743015423512,1.00913087,1996.6,1996.5,22.90709774]
[1743015423811,1.00913087,1996.6,1996.5,1.86496774]
[1743015424010,1.00913087,1996.6,1996.5,2.86659774]
[1743015424205,1.00913087,1996.6,1996.5,22.90709774]
[1743015424405,1.00913087,1996.6,1996.5,21.90546774]
[1743015425013,1.00913087,1996.6,1996.3,0.00752087]
[1743015425014,1.00168,1996.4,1996.3,0.00752087]
[1743015425205,1.00168,1996.4,1996.3,9.3538487]
[1743015425511,1.00168,1996.4,1996.3,32.6021487]
[1743015425715,1.00168,1996.4,1996.3,29.3943487]
[1743015426011,1.00168,1996.4,1996.3,28.3926287]
[1743015426202,1.00168,1996.4,1996.3,32.6021587]
[1743015426402,1.00168,1996.4,1996.3,29.3943587]
[1743015426610,1.00168,1996.5,1996.4,1.00163]
[1743015426816,1.00168,1996.4,1996.3,9.3538187]
[1743015427008,1.00168,1996.4,1996.3,28.3926287]
[1743015427312,1.00203,1995.8,1995.7,1.00199]
[1743015427512,1.00208,1995.7,1995.6,1.00204]
[1743015428010,1.00208,1995.7,1995.3,51.182]
[1743015428011,1.00218,1995.4,1995.3,52.18421]
[1743015428214,1.00218,1995.4,1995.3,61.94461783]
[1743015428414,1.00218,1995.4,1995.3,81.98511783]
[1743015428614,1.00967087,1995.5,1995.4,1.00218]
[1743015428810,0.00752087,1995.5,1995.4,5.62578]
[1743015429007,0.00752087,1995.5,1995.4,25.66628]
[1743015429318,1.00965087,1995.5,1995.4,24.6641]
[1743015429613,1.00243,1994.9,1994.7,3.2078]
[1743015429809,1.00243,1994.9,1994.8,10.60028783]
[1743015430016,1.00241,1995.0,1994.9,1.00236]
[1743015430207,1.00241,1995.0,1994.9,29.38746783]
[1743015430511,1.00243,1994.9,1994.8,2.25566]
[1743015430711,1.00243,1994.9,1994.8,10.60026783]
[1743015430913,1.00243,1994.9,1994.8,29.63830783]
[1743015431517,1.00248,1994.8,1994.7,2.43299]
[1743015431722,1.00248,1994.8,1994.7,10.77759783]
[1743015432018,1.00248,1994.8,1994.7,29.81560783]
[1743015432518,4.21028,1994.8,1994.7,9.77510783]
[1743015432815,1.00268,1994.4,1994.3,1.00272]
[1743015433023,1.00268,1994.4,1994.3,9.77510783]
[1743015433220,1.00268,1994.5,1994.3,21.471]
[1743015433424,1.00254,1994.8,1994.7,1.00253]
[1743015433617,1.00254,1994.8,1994.7,24.25083]
[1743015433818,1.00246,1994.9,1994.8,1.00241]
[1743015434120,3.78761546,1995.1,1995.0,20.0405]
[1743015434318,3.0107168,1995.4,1995.3,1.00223]
[1743015434518,3.0107168,1995.4,1995.3,21.04273]
[1743015434720,3.0107168,1995.4,1995.1,1.3647]
[1743015434721,1.00228,1995.3,1995.1,1.3647]
[1743015434926,4.0129368,1995.4,1995.3,21.04273]
[1743015436026,3.0107168,1995.4,1995.3,21.04273]
[1743015436325,1.00218,1995.4,1995.3,20.0405]
[1743015436624,1.00218,1995.4,1995.3,21.04273]
[1743015437123,6.75483928,1995.5,1995.4,1.00218]
[1743015437325,6.75483928,1995.5,1995.4,25.59048]
[1743015437522,6.75483928,1995.5,1995.4,24.25048]
[1743015437728,1.00228,1995.3,1995.1,3.2078]
[1743015437929,1.00228,1995.3,1995.2,1.00227]
[1743015438223,1.00228,1995.3,1995.2,21.3805]
[1743015438428,1.00228,1995.3,1995.2,1.34]
[1743015439422,1.00228,1995.2,1995.1,3.2078]
[1743015440327,2.34608,1995.2,1995.1,3.2078]
[1743015441127,1.00233,1995.1,1995.0,1.3193]
[1743015441629,1.00233,1995.1,1995.0,2.32168]
[1743015442128,6.74742841,1995.3,1995.2,1.00228]
[1743015442329,6.74742841,1995.3,1995.2,21.04278]
[1743015443122,1.00228,1995.3,1995.2,24.25058]
[1743015443322,1.00228,1995.3,1995.2,21.04278]
[1743015444033,1.00222,1995.4,1995.3,1.00218]
[1743015444226,1.00222,1995.4,1995.3,22.37708]
[1743015444725,0.00752087,1995.5,1995.4,1.00218]
[1743015444924,0.00752087,1995.5,1995.4,22.37708]
[1743015444925,1.00965087,1995.5,1995.4,22.37708]
[1743015445127,1.00965087,1995.5,1995.4,21.3749]
[1743015445525,1.00965087,1995.5,1995.4,22.37708]
[1743015445724,1.00965087,1995.5,1995.4,21.3749]
[1743015446123,1.00965087,1995.5,1995.4,22.37708]
[1743015446733,0.00752087,1995.5,1995.4,25.58488]
[1743015447124,1.00238,1995.0,1994.9,1.0024]
[1743015447328,1.00228,1995.2,1995.1,20.0405]
[1743015447632,1.00228,1995.2,1994.8,0.6525]
[1743015447633,1.00243,1994.9,1994.8,1.65498]
[1743015447836,1.00243,1994.9,1994.8,4.86278]
[1743015448033,1.00243,1994.9,1994.8,3.6487672]
[1743015448228,1.00248,1994.8,1994.7,1.2533]
[1743015448930,1.00268,1994.4,1994.3,1.3303]
[1743015449134,1.00268,1994.4,1994.1,3.5103]
[1743015449135,1.00278,1994.2,1994.1,3.5103]
[1743015449432,1.00288,1994.0,1993.9,0.999]
[1743015449830,4.21068,1994.0,1993.9,0.999]
[1743015450229,1.00319,1993.4,1993.3,54.74304]
[1743015450428,3.2078,1994.1,1993.6,1.00304]
[1743015450635,1.00298,1993.8,1993.7,3.2078]
[1743015450843,1.00298,1993.8,1993.5,1.9937872]
[1743015450844,1.00308,1993.6,1993.5,1.9937872]
[1743015451230,1.00319,1993.4,1993.3,50.532]
[1743015451432,1.00329,1993.2,1993.1,1.2988]
[1743015451841,1.00329,1993.2,1993.1,2.30214]
[1743015452045,1.00329,1993.2,1993.1,1.2988]
[1743015452539,2.50807,1993.4,1993.0,2.007]
[1743015452540,1.00334,1993.1,1993.0,2.007]
[1743015452735,5.01634,1993.3,1993.2,1.9937872]
[1743015452736,1.439,1993.3,1993.2,1.9937872]
[1743015452936,1.00322,1993.4,1993.3,1.0032]
[1743015453139,1.00317,1993.5,1993.4,1.9937872]
[1743015453341,1.00322,1993.4,1993.3,2.9969772]
[1743015453536,0.00752087,1993.5,1993.4,2.9969772]
[1743015453733,0.00752087,1993.5,1993.4,4.2957772]
[1743015453946,2.50698,1994.2,1993.4,10.8083772]
[1743015454146,1.00291,1994.0,1993.9,2.9966572]
[1743015454346,1.00291,1994.0,1993.9,6.2044572]
[1743015454537,1.00291,1994.0,1993.9,2.9966572]
[1743015454738,1.00276,1994.3,1994.2,1.00275]
[1743015454939,1.00273,1994.4,1994.3,1.00273]
[1743015455243,1.01025087,1994.4,1994.3,7.5475172]
[1743015455439,0.00752087,1994.4,1994.3,7.5475172]
[1743015455742,1.00254,1994.8,1994.7,1.00248]
[1743015456043,1.00241,1995.0,1994.9,2.9961472]
[1743015456245,1.00241,1995.0,1994.9,6.2039472]
[1743015456541,3.2078,1995.5,1994.9,5.2015872]
[1743015456740,1.00233,1995.2,1995.1,2.9960872]
[1743015456941,1.00233,1995.1,1995.0,1.3432]
[1743015457539,4.21013,1995.1,1995.0,1.3432]
[1743015457845,1.00243,1994.9,1994.8,0.00752087]
[1743015458345,1.00243,1994.9,1994.8,1.43492087]
[1743015458938,1.00258,1994.6,1994.5,0.8744]
[1743015459647,2.37498,1994.6,1994.5,0.8744]
[1743015460438,4.87498,1994.6,1994.5,0.8744]
[1743015460643,1.00263,1994.5,1994.4,1.01017087]
[1743015460947,1.00263,1994.5,1994.4,4.21797087]
[1743015461149,1.00263,1994.5,1994.4,6.21175807]
[1743015461347,1.00263,1994.5,1994.4,3.00395807]
[1743015461549,1.00263,1994.5,1994.4,6.21175807]
[1743015462140,1.0026,1994.6,1994.5,1.00258]
[1743015462345,1.00253,1994.8,1994.5,5.8341572]
[1743015462650,1.00253,1994.8,1994.7,6.2041172]
[1743015463247,1.00247,1994.9,1994.8,1.00243]
[1743015463455,1.00247,1994.9,1994.8,1.3339]
[1743015463751,1.00247,1994.9,1994.8,4.3301672]
[1743015463952,1.00247,1994.9,1994.8,3.3276872]
[1743015464149,3.2078,1994.9,1994.4,0.00752087]
[1743015464354,1.00263,1994.5,1994.4,3.31620807]
[1743015465751,1.00278,1994.2,1994.1,1.00283]
[1743015466155,1.00278,1994.2,1994.1,2.9966172]
[1743015466345,1.00274,1994.4,1994.3,1.0027]
[1743015466546,1.00268,1994.4,1994.3,1.9937872]
[1743015466743,2.50719,1994.1,1993.7,3.918]
[1743015466952,2.50719,1994.1,1993.8,1.9937872]
[1743015466953,1.00293,1993.9,1993.8,1.9937872]
[1743015467250,1.00293,1993.9,1993.8,2.9967672]
[1743015467657,1.00293,1993.9,1993.8,1.9937872]
[1743015469257,1.00293,1993.9,1993.8,2.9967672]
[1743015469461,1.00293,1993.9,1993.8,1.9937872]
[1743015470347,0.00752087,1994.5,1993.9,2.50734]
[1743015470550,0.00752087,1994.5,1994.4,2.9964672]
[1743015470750,1.01015087,1994.5,1994.4,6.2042672]
[1743015471555,0.00752087,1994.5,1994.4,6.2042672]
[1743015471747,1.01015087,1994.5,1994.4,6.2042672]
[1743015472543,0.00752087,1994.5,1994.4,6.2042672]
[1743015472748,1.01015087,1994.5,1994.4,6.2042672]
[1743015474454,1.01015087,1994.5,1994.4,7.5383672]
[1743015475454,11.51713401,1994.6,1994.5,1.00263]
[1743015475653,11.51713401,1994.6,1994.5,4.3305172]
[1743015476050,11.51713401,1994.6,1994.5,9.5865172]
[1743015476462,11.51713401,1994.6,1994.5,12.0865172]
[1743015476463,11.40163488,1994.6,1994.5,12.0865172]
[1743015476752,11.40163488,1994.6,1994.5,13.5665172]
[1743015476953,10.19662488,1994.6,1994.5,12.2465172]
[1743015477153,12.79555827,1994.7,1994.6,1.00258]
[1743015477347,12.79555827,1994.7,1994.6,4.21038]
[1743015477548,12.79555827,1994.7,1994.6,8.30038]
[1743015477749,12.79555827,1994.7,1994.6,47.51038]
[1743015478846,0.00752087,1994.7,1994.6,47.51038]
[1743015479048,0.00752087,1994.7,1994.6,4.21038]
[1743015479654,0.00752087,1994.7,1994.6,9.42638]
[1743015480859,2.51387087,1994.7,1994.4,3.2078]
[1743015481156,2.51387087,1994.7,1994.3,1.42872087]
[1743015481157,1.00268,1994.4,1994.3,0.42602087]
[1743015481655,1.00278,1994.2,1994.1,2.0059]
[1743015481860,2.50701,1994.2,1993.7,0.1128]
[1743015482055,1.3896,1994.1,1993.7,0.1128]
[1743015482354,1.00293,1993.9,1993.8,1.2538]
[1743015482754,2.39253,1993.9,1993.8,1.2538]
[1743015483251,2.39253,1993.9,1993.7,0.1128]
[1743015483252,7.10481,1993.9,1993.4,3.2078]
[1743015483556,4.5974,1993.9,1993.4,4.21095]
[1743015483759,1.00314,1993.5,1993.4,3.2078]
[1743015483949,1.00312,1993.6,1993.4,4.21096]
[1743015484152,1.01064087,1993.6,1993.4,3.2078]
[1743015484352,1.3896,1993.5,1993.4,4.21096]
[1743015484557,2.39274,1993.5,1993.4,3.2078]
[1743015485755,1.00324,1993.3,1993.2,0.4186]
[1743015485959,4.5974,1993.5,1992.6,3.60021751]
[1743015486160,3.2078,1992.7,1992.4,11.49682896]
[1743015486351,1.00364,1992.5,1992.4,11.49682896]
[1743015486557,1.00364,1992.5,1992.2,19.18636968]
[1743015486558,1.3638,1992.6,1991.9,4.6114]
[1743015486857,1.3638,1992.6,1992.5,3.1208]
[1743015487052,1.3638,1992.6,1992.5,4.12444]
[1743015487258,1.3638,1992.6,1992.3,3.2078]
[1743015487558,1.3638,1992.6,1992.4,3.2078]
[1743015487763,1.3638,1992.6,1992.1,3.2078]
[1743015487954,1.3638,1992.6,1992.5,3.2078]
[1743015488262,1.3638,1992.6,1992.5,4.21144]
[1743015488461,0.00752087,1992.7,1992.6,1.00359]
[1743015488767,1.00361,1992.6,1992.3,3.2078]